bitfinex-derivatives/quotes_ETHF0:USTF0_20230402
["timestamp","ask_amount","ask_price","bid_price","bid_amount"]
[1680427821943,0.62806064,1821.1,1821.0,1.627266]
[1680427822550,0.05219215,1821.1,1821.0,1.91949542]
[1680427822745,0.05219215,1821.1,1821.0,0.47916987]
[1680427823656,0.05219215,1821.1,1821.0,1.91949542]
[1680427825846,0.62806064,1821.1,1821.0,1.91949542]
[1680427883692,0.91003206,1821.1,1821.0,1.91949542]
[1680427883892,0.91003206,1821.1,1821.0,1.44032555]
[1680427884898,1.48636714,1821.1,1821.0,1.44032555]
[1680427885398,0.91003206,1821.1,1821.0,0.47916987]
[1680427885600,0.91003206,1821.1,1820.9,1.91949542]
[1680427885801,0.91003206,1821.1,1821.0,1.91949542]
[1680427886097,0.91003206,1821.1,1821.0,1.44032555]
[1680427886491,0.91003206,1821.1,1821.0,0.47916987]
[1680427886691,0.91003206,1821.1,1821.0,1.14955284]
[1680427888000,0.91003206,1821.1,1821.0,0.47916987]
[1680427888195,0.91003206,1821.1,1821.0,1.14953333]
[1680427888793,1.48624033,1821.1,1821.0,1.14953333]
[1680427890693,0.62248863,1821.1,1821.0,0.47916987]
[1680427890900,0.62248863,1821.1,1821.0,1.14932957]
[1680427891296,1.48624033,1821.1,1821.0,1.14932957]
[1680427891599,0.62248863,1821.1,1821.0,1.14932957]
[1680427891998,0.62248863,1821.1,1821.0,1.62848668]
[1680427892201,0.62248863,1821.1,1821.0,2.14931681]
[1680427892402,1.48624033,1821.1,1821.0,2.62848668]
[1680427892797,0.62248863,1821.1,1821.0,2.62848668]
[1680427893902,0.62248863,1821.1,1821.0,1.62848668]
[1680427894095,0.62248863,1821.1,1821.0,1.14931681]
[1680427899308,0.62248863,1821.1,1821.0,2.14931681]
[1680427899509,0.62248863,1821.1,1821.0,1.62848668]
[1680427899708,0.62248863,1821.1,1821.0,1.14931681]
[1680427907009,0.91003206,1821.1,1821.0,1.14931681]
[1680427907518,0.91003206,1821.1,1820.9,1.64053798]
[1680427907818,0.91003206,1821.1,1821.0,1.14931681]
[1680427918928,0.91003206,1821.1,1820.9,1.14931681]
[1680427919132,0.57601567,1821.0,1820.8,5.34032555]
[1680427919331,0.57601567,1821.0,1820.9,0.49119466]
[1680427919931,0.62752856,1821.0,1820.9,0.49119466]
[1680427920327,3.83532856,1821.0,1820.9,0.49119466]
[1680427920925,3.83532856,1821.0,1820.9,1.64023425]
[1680427927032,3.83532856,1821.0,1820.9,1.14903959]
[1680427946861,4.69908026,1821.0,1820.9,1.14903959]
[1680427947454,3.83532856,1821.0,1820.9,1.14903959]
[1680427947658,4.69908026,1821.0,1820.9,1.14903959]
[1680427951761,4.69908026,1821.0,1820.9,2.14903959]
[1680427951961,4.69908026,1821.0,1820.9,2.64023425]
[1680427952559,4.12306459,1821.0,1820.9,2.64023425]
[1680427953660,4.12306459,1821.0,1820.9,1.64023425]
[1680427954061,4.12306459,1821.0,1820.9,1.14903959]
[1680427970180,4.12306459,1821.0,1820.8,1.93152021]
[1680427970373,4.0715517,1821.0,1820.9,0.49119466]
[1680427970574,4.12309559,1821.0,1820.9,0.49119466]
[1680427971977,4.12309559,1821.0,1820.8,1.93152021]
[1680427972282,4.12309559,1821.0,1820.9,0.49119466]
[1680427972581,4.12309683,1821.0,1820.8,1.93152021]
[1680427972773,4.12309683,1821.0,1820.9,0.49119466]
[1680427972971,4.0715517,1821.0,1820.8,1.93152021]
[1680427973179,4.12309711,1821.0,1820.9,0.49119466]
[1680427973370,4.12309711,1821.0,1820.8,1.93152021]
[1680427973569,0.57642747,1820.9,1820.8,1.93152021]
[1680427973876,0.62797333,1820.9,1820.8,1.93152021]
[1680427984188,0.62797333,1820.9,1820.8,0.49119466]
[1680427984586,0.62797333,1820.9,1820.8,1.92699522]
[1680427987589,0.05154586,1820.9,1820.8,0.49119466]
[1680427987988,0.57642747,1821.0,1820.8,0.49119466]
[1680427988188,1.44017917,1821.1,1820.8,0.49119466]
[1680427988495,1.44017917,1821.1,1821.0,1.43548903]
[1680427988788,0.8637517,1821.1,1821.0,2.92668369]
[1680427988998,0.57620329,1821.1,1821.0,2.63922393]
[1680427993093,0.62776094,1821.1,1821.0,2.63922393]
[1680427997297,0.05155765,1821.1,1821.0,2.63922393]
[1680428004096,0.05155765,1821.1,1821.0,1.49119466]
[1680428004704,0.05155765,1821.1,1821.0,2.6380139]
[1680428004904,0.05155765,1821.1,1821.0,1.49119466]
[1680428005201,0.05155765,1821.1,1821.0,2.63801666]
[1680428018821,0.05155765,1821.1,1821.0,2.92668369]
[1680428019117,0.57620329,1821.2,1821.0,2.92668369]
[1680428019319,0.57620329,1821.2,1821.1,1.14678603]
[1680428022920,0.62777911,1821.2,1821.1,1.14678603]
[1680428030721,0.62777911,1821.2,1821.1,1.6387068]
[1680428033229,0.91532752,1821.2,1821.1,1.14678603]
[1680428036032,0.8637517,1821.2,1821.1,1.20782496]
[1680428037727,0.86435188,1821.2,1821.1,1.20782496]
[1680428037933,0.86435211,1821.2,1821.1,0.06103893]
[1680428038134,0.86435211,1821.2,1821.1,1.20782496]
[1680428041327,0.86435211,1821.2,1821.1,1.70011516]
[1680428041527,0.86435211,1821.2,1821.1,1.20782496]
[1680428042436,0.86435211,1821.2,1821.1,1.700105]
[1680428045342,0.57623354,1821.2,1821.1,0.55331897]
[1680428045842,1.44058565,1821.2,1821.1,0.55331897]
[1680428047636,0.86435211,1821.2,1821.1,0.55331897]
[1680428047840,1.44059702,1821.2,1821.1,0.55331897]
[1680428055149,0.57624491,1821.2,1821.1,0.55331897]
[1680428068562,1.44059702,1821.2,1821.1,0.55331897]
[1680428068959,0.57624491,1821.2,1821.1,0.55331897]
[1680428069254,0.57624491,1821.2,1821.1,1.988808]
[1680428069556,0.56907656,1821.2,1821.1,1.988808]
[1680428081061,0.56907656,1821.2,1821.1,5.196608]
[1680428124510,0.56907656,1821.2,1821.1,5.19061345]
[1680428184846,0.86435211,1821.4,1821.1,3.75512442]
[1680428185043,0.86435211,1821.4,1821.3,1.14744632]
[1680428185248,0.86435211,1821.4,1821.3,2.20652949]
[1680428185437,0.86435211,1821.4,1821.3,2.69880953]
[1680428185842,0.86435211,1821.4,1821.3,1.69880953]
[1680428190549,0.86435211,1821.4,1821.3,1.20652949]
[1680428200470,0.57604961,1821.4,1821.3,1.20652949]
[1680428200672,0.57604961,1821.4,1821.3,1.69860123]
[1680428202276,0.57178548,1821.4,1821.3,1.69860123]
[1680428219282,0.86435211,1821.6,1821.3,6.19326281]
[1680428219589,0.86435211,1821.6,1821.5,0.86007055]
[1680428222283,0.86435211,1821.7,1821.5,1.14676073]
[1680428222485,0.86435211,1821.7,1821.6,0.85987989]
[1680428231791,0.86435211,1821.7,1821.6,1.43297811]
[1680428232998,0.86435211,1821.7,1821.6,1.52285951]
[1680428233696,0.86435211,1821.7,1821.6,0.66297962]
[1680428239294,0.86435211,1821.7,1821.6,0.6575946]
[1680428244896,0.86435211,1821.7,1821.6,1.51747449]
[1680428245493,0.86435211,1821.7,1821.6,0.6575946]
[1680428245700,0.86435211,1821.7,1821.6,1.51747449]
[1680428247199,0.86435211,1821.7,1821.6,0.94976129]
[1680428263108,4.35999517,1821.8,1821.6,0.94976129]
[1680428264710,1.15219517,1821.7,1821.6,0.94976129]
[1680428266909,1.15219517,1821.7,1821.6,0.0898814]
[1680428270612,1.15219517,1821.7,1821.6,1.23664213]
[1680428274214,1.15219517,1821.7,1821.6,0.0898814]
[1680428278017,1.15219517,1821.7,1821.6,1.23664213]
[1680428278412,1.15219517,1821.7,1821.6,0.0898814]
[1680428278613,1.15219517,1821.7,1821.6,1.23664213]
[1680428279416,1.15219517,1821.7,1821.6,0.0898814]
[1680428279615,1.15219517,1821.7,1821.6,1.23664213]
[1680428279913,1.15219517,1821.7,1821.6,0.0898814]
[1680428282520,1.15219517,1821.7,1821.6,1.23664213]
[1680428289735,0.96423273,1822.0,1821.6,1.89432095]
[1680428290024,0.1,1822.0,1821.9,1.14755899]
[1680428290417,0.1,1822.0,1821.9,0.85966657]
[1680428293127,0.1,1822.0,1821.9,1.08071841]
[1680428295328,0.1,1822.0,1821.9,0.22105184]
[1680428300826,1.1,1822.0,1821.9,0.22105184]
[1680428301031,1.96322894,1822.0,1821.9,0.22105184]
[1680428301423,1.96322894,1822.0,1821.7,0.85966657]
[1680428301630,3.2078,1821.8,1821.7,0.85966657]
[1680428308025,3.2078,1821.8,1821.7,1.08022466]
[1680428320648,0.96322894,1822.0,1821.7,1.08022466]
[1680428320952,4.17102894,1822.0,1821.7,1.08022466]
[1680428321354,4.17102894,1822.0,1821.7,2.08022466]
[1680428322059,4.17102894,1822.0,1821.8,0.85966657]
[1680428322244,0.57503439,1821.9,1821.7,2.08022466]
[1680428322653,4.74606333,1822.0,1821.8,0.85966657]
[1680428323051,3.88283439,1822.0,1821.9,0.22055506]
[1680428323756,4.74606333,1822.0,1821.9,0.22055506]
[1680428325750,4.17102894,1822.0,1821.9,0.22055506]
[1680428331965,3.3078,1822.0,1821.9,0.22055506]
[1680428332963,4.17111244,1822.0,1821.9,0.22055506]
[1680428333960,4.45761847,1822.0,1821.9,1.08022163]
[1680428347380,1.24981847,1822.0,1821.9,1.08022163]
[1680428347881,0.1,1822.0,1821.9,1.36811405]
[1680428348079,0.1,1822.0,1821.9,2.36811405]
[1680428348080,0.96408286,1822.0,1821.9,2.36811405]
[1680428349177,0.96408286,1822.0,1821.9,1.36811405]
[1680428352980,0.96408286,1822.0,1821.9,0.22055506]
[1680428361088,0.96408286,1822.0,1821.9,1.08068786]
[1680428361593,0.96408286,1822.0,1821.9,0.22055506]
[1680428362392,0.96408286,1822.0,1821.9,1.08069522]
[1680428364797,0.96117393,1822.0,1821.9,1.36811405]
[1680428364996,0.96117393,1822.0,1821.9,0.22055506]
[1680428365200,0.96117393,1822.0,1821.9,1.36811405]
[1680428365799,0.96117393,1822.0,1821.9,0.22055506]
[1680428367292,0.96117393,1822.0,1821.9,1.22055506]
[1680428367790,0.96117393,1822.0,1821.9,7.12629688]
[1680428368392,0.96117393,1822.0,1821.9,6.12629688]
[1680428368888,0.96117393,1822.0,1821.9,6.98640741]
[1680428369887,0.96117393,1822.0,1821.9,1.08066559]
[1680428376102,0.96117393,1822.0,1821.9,0.22055506]
[1680428381996,0.96117393,1822.0,1821.9,1.36811405]
[1680428391299,0.09709107,1822.0,1821.9,1.36811405]
[1680428393707,1.24690954,1822.0,1821.9,1.36811405]
[1680428406308,0.09709107,1822.0,1821.9,1.36811405]
[1680428416722,0.09709107,1822.0,1821.9,1.36089784]
[1680428417029,1.24690954,1822.0,1821.9,0.21333885]
[1680428417221,1.93018311,1822.0,1821.9,0.21333885]
[1680428417424,1.09709107,1822.0,1821.9,1.07412679]
[1680428417629,0.09709107,1822.0,1821.9,1.07412679]
[1680428418024,1.53746163,1822.0,1821.9,1.64805009]
[1680428418727,0.09709107,1822.0,1821.9,0.78726215]
[1680428419734,1.53746163,1822.0,1821.9,0.78726215]
[1680428420632,0.09709107,1822.0,1821.9,0.78726215]
[1680428420934,0.09709107,1822.0,1821.9,0.5739233]
[1680428421133,1.53746163,1822.0,1821.9,0.7901457]
[1680428421631,0.09709107,1822.0,1821.9,0.7901457]
[1680428422239,1.24874083,1822.0,1821.9,0.7901457]
[1680428426739,1.24874083,1822.0,1821.9,0.2162224]
[1680428427535,1.24874083,1822.0,1821.9,0.7901457]
[1680428428540,1.24874083,1822.0,1821.9,0.2162224]
[1680428432436,1.24874083,1822.0,1821.9,0.7901457]
[1680428434434,1.24874083,1822.0,1821.9,0.2162224]
[1680428438142,4.45654083,1822.0,1821.9,0.2162224]
[1680428438541,4.45654083,1822.0,1821.9,0.7901457]
[1680428439844,4.45654083,1822.0,1821.9,0.2162224]
[1680428440143,4.45654083,1822.0,1821.9,0.7901457]
[1680428460673,4.45654083,1822.0,1821.9,1.65093364]
[1680428460965,3.30489107,1822.0,1821.9,0.7901457]
[1680428461160,4.74526163,1822.0,1821.9,0.7901457]
[1680428462661,5.42598307,1822.0,1821.9,0.7901457]
[1680428473268,1.24909691,1822.0,1821.9,0.7901457]
[1680428473469,0.09709107,1822.0,1821.9,0.2162224]
[1680428473662,0.09709107,1822.0,1821.9,1.2162224]
[1680428474761,0.96087332,1822.0,1821.9,2.07685987]
[1680428478173,0.96087332,1822.0,1821.9,1.07685987]
[1680428480872,3.30489107,1822.0,1821.9,0.2162224]
[1680428481372,4.74526163,1822.0,1821.9,0.13909112]
[1680428482573,3.30489107,1822.0,1821.9,0.13909112]
[1680428485678,1.24857133,1822.0,1821.9,0.71277032]
[1680428486272,4.45637133,1822.0,1821.9,0.71277032]
[1680428488673,1.24857133,1822.0,1821.9,1.57340779]
[1680428489273,1.24857133,1822.0,1821.9,0.71277032]
[1680428490076,4.45637133,1822.0,1821.9,0.71277032]
[1680428496079,4.45637133,1822.0,1821.9,0.75489269]
[1680428497580,4.45637133,1822.0,1821.9,0.18121349]
[1680428497884,3.30489107,1822.0,1821.9,0.18121349]
[1680428502396,4.74526163,1822.0,1821.9,0.18121349]
[1680428502688,3.30489107,1822.0,1821.9,0.18121349]
[1680428502886,4.74526163,1822.0,1821.9,0.18121349]
[1680428504291,3.30489107,1822.0,1821.9,0.18121349]
[1680428505090,4.74526163,1822.0,1821.9,0.18121349]
[1680428505490,4.74526163,1822.0,1821.8,0.5736792]
[1680428505691,1.15134376,1821.9,1821.8,0.5736792]
[1680428509789,1.15134376,1821.9,1821.8,0.75506861]
[1680428512100,1.68077957,1821.9,1821.6,0.57386137]
[1680428512391,4.35925955,1821.7,1821.5,0.57386137]
[1680428512596,1.0,1821.6,1821.5,0.57386137]
[1680428512890,1.86316868,1821.6,1821.5,0.57386137]
[1680428514193,0.86316868,1821.6,1821.5,0.57386137]
[1680428514396,1.86316868,1821.6,1821.4,1.43449884]
[1680428514597,3.78325837,1821.5,1821.4,1.43449884]
[1680428514793,3.78325837,1821.5,1821.4,0.57386137]
[1680428518699,3.2078,1821.5,1821.4,0.57386137]
[1680428520995,3.78325837,1821.5,1821.4,0.57386137]
[1680428521197,3.2078,1821.5,1821.4,0.57386137]
[1680428521495,3.78325837,1821.5,1821.4,0.57386137]
[1680428521904,3.2078,1821.5,1821.4,0.57386137]
[1680428522202,3.78325837,1821.5,1821.4,0.57386137]
[1680428523498,3.2078,1821.5,1821.3,1.43449884]
[1680428525605,3.2078,1821.5,1821.3,0.57386137]
[1680428526410,3.2078,1821.5,1821.4,0.57386137]
[1680428526599,3.2078,1821.5,1821.3,1.43449884]
[1680428528705,3.2078,1821.5,1821.3,0.57386137]
[1680428529107,3.2078,1821.5,1821.3,1.43449884]
[1680428529509,3.2078,1821.5,1821.3,0.57386137]
[1680428536812,3.2078,1821.5,1821.3,1.43449884]
[1680428537017,0.57545837,1821.6,1821.3,1.43449884]
[1680428537516,3.2078,1821.4,1821.3,1.43449884]
[1680428539214,3.2078,1821.4,1821.3,0.86063747]
[1680428545426,0.57545837,1821.6,1821.3,0.86063747]
[1680428545618,0.57545837,1821.6,1821.4,1.43290562]
[1680428545819,0.57545837,1821.6,1821.5,0.57316225]
[1680428550233,1.43862705,1821.6,1821.5,0.57316225]
[1680428550731,0.86316868,1821.6,1821.5,0.57316225]
[1680428554725,0.86316868,1821.6,1821.5,0.85974337]
[1680428556630,1.15145955,1821.6,1821.5,0.85974337]
[1680428559032,4.35925955,1821.6,1821.5,0.85974337]
[1680428563845,4.35925955,1821.6,1821.5,1.20137116]
[1680428563846,0.86400917,1821.6,1821.5,1.20137116]
[1680428564042,0.57598013,1821.6,1821.5,1.54988014]
[1680428564249,0.57598013,1821.6,1821.5,2.98436305]
[1680428565342,0.57598013,1821.6,1821.5,6.19216305]
[1680428565745,0.57598013,1821.7,1821.5,4.75768014]
[1680428565951,0.57598013,1821.7,1821.6,1.14776225]
[1680428568650,0.57598013,1821.7,1821.5,5.40937442]
[1680428570756,0.57598013,1821.7,1821.6,0.86045663]
[1680428571053,0.57598013,1821.7,1821.6,0.95729342]
[1680428586468,3.78378013,1821.7,1821.6,0.67002589]
[1680428586671,3.78378013,1821.7,1821.6,1.53048252]
[1680428588165,4.6477893,1821.7,1821.6,0.67002589]
[1680428588670,4.6477893,1821.7,1821.6,1.53048252]
[1680428588866,4.6477893,1821.7,1821.6,0.67002589]
[1680428589370,4.6477893,1821.7,1821.6,1.53048252]
[1680428590175,4.07180917,1821.7,1821.6,0.67002589]
[1680428590367,4.07180917,1821.7,1821.6,1.53048252]
[1680428591177,4.07180917,1821.7,1821.6,0.67002589]
[1680428592780,4.07180917,1821.7,1821.6,0.66558083]
[1680428597775,4.35925955,1821.7,1821.6,0.09239173]
[1680428597978,4.35925955,1821.7,1821.6,0.0432052]
[1680428602274,4.35925955,1821.7,1821.6,0.6163943]
[1680428602481,4.35925955,1821.7,1821.6,0.0432052]
[1680428608984,3.2078,1821.7,1821.6,0.6163943]
[1680428614289,4.35925955,1821.7,1821.6,0.6163943]
[1680428615279,4.07119011,1821.7,1821.6,0.6163943]
[1680428616084,0.86339011,1821.7,1821.6,0.6163943]
[1680428616290,0.86339011,1821.7,1821.6,1.47685093]
[1680428617085,0.86339011,1821.7,1821.6,0.90366183]
[1680428622395,0.86339011,1821.7,1821.6,0.93548337]
[1680428628998,0.86339011,1821.7,1821.6,1.93548337]
[1680428641711,0.86339011,1821.7,1821.6,4.28282674]
[1680428642102,1.43914635,1821.7,1821.6,4.28282674]
[1680428642306,0.86339011,1821.7,1821.6,4.28282674]
[1680428642805,0.86339011,1821.7,1821.6,4.1434247]
[1680428646406,0.86339011,1821.7,1821.6,3.28282674]
[1680428647109,0.86339011,1821.7,1821.6,4.14346167]
[1680428647813,0.86339011,1821.7,1821.6,3.28282674]
[1680428648309,0.86339011,1821.7,1821.6,4.14345026]
[1680428648509,0.86339011,1821.7,1821.6,3.28282674]
[1680428648903,0.86339011,1821.7,1821.6,4.14348227]
[1680428649416,0.57576978,1821.7,1821.6,4.92666673]
[1680428650315,0.57576978,1821.7,1821.6,4.43058899]
[1680428651809,0.57576978,1821.7,1821.6,4.92656361]
[1680428652314,0.57576978,1821.8,1821.6,6.21328427]
[1680428652618,1.43915989,1821.9,1821.7,2.64298782]
[1680428652819,0.86339011,1821.9,1821.8,1.86026822]
[1680428653117,1.43903922,1821.9,1821.8,1.94208282]
[1680428653414,0.86339011,1821.9,1821.8,1.94208282]
[1680428654211,0.57549921,1821.9,1821.8,1.94208282]
[1680428654411,1.43888932,1821.9,1821.8,1.94208282]
[1680428655115,0.86339011,1821.9,1821.8,1.94208282]
[1680428655317,0.86339011,1821.9,1821.8,0.94208282]
[1680428656714,1.4388561,1821.9,1821.8,0.94208282]
[1680428657019,0.86339011,1821.9,1821.8,0.94208282]
[1680428659012,0.86339011,1821.9,1821.8,1.5154106]
[1680428661016,0.86339011,1821.9,1821.8,1.57270527]
[1680428663322,0.86339011,1821.9,1821.8,0.71720602]
[1680428668630,4.07119011,1821.9,1821.8,0.71720602]
[1680428669625,0.86339011,1821.9,1821.8,0.71720602]
[1680428669926,1.43877646,1821.9,1821.8,0.14387824]
[1680428670131,1.43877646,1821.9,1821.6,5.3548132]
[1680428670424,0.57538635,1821.8,1821.6,5.3548132]
[1680428672228,0.57538635,1821.8,1821.6,2.1470132]
[1680428676022,0.57538635,1821.8,1821.7,1.14387681]
[1680428678833,0.57538635,1821.8,1821.7,0.14387681]
[1680428682527,0.57538635,1821.8,1821.7,1.29089001]
[1680428692244,1.43877646,1821.8,1821.7,1.29089001]
[1680428693638,0.86339011,1821.8,1821.7,1.29089001]
[1680428694347,0.86339011,1821.8,1821.7,1.78722605]
[1680428698047,4.07119011,1821.8,1821.7,1.29089001]
[1680428700346,4.07193044,1821.8,1821.7,1.29089001]
[1680428700547,3.2078,1821.8,1821.7,1.29089001]
[1680428701046,3.2078,1821.8,1821.7,0.14387681]
[1680428703047,3.2078,1821.8,1821.7,1.29089001]
[1680428703246,3.2078,1821.8,1821.7,0.14387681]
[1680428704652,3.2078,1821.8,1821.7,1.29089001]
[1680428705449,3.2078,1821.8,1821.7,0.14387681]
[1680428707253,4.07183481,1821.8,1821.7,0.14387681]
[1680428720062,4.35925955,1821.8,1821.7,0.14387681]
[1680428721062,4.35925955,1821.8,1821.7,1.00474875]
[1680428752295,1.15145955,1821.8,1821.7,1.00474875]
[1680428752589,1.15145955,1821.9,1821.7,1.00474875]
[1680428752789,1.15145955,1821.9,1821.8,1.4348664]
[1680428753893,1.15145955,1821.9,1821.8,0.57399446]
[1680428754595,1.15145955,1821.9,1821.8,0.71919892]
[1680428754989,1.15145955,1821.9,1821.8,0.57399446]
[1680428755293,4.74421551,1822.0,1821.8,0.71919892]
[1680428756093,1.15204469,1821.9,1821.8,0.71919892]
[1680428757197,1.15204469,1821.9,1821.8,1.0060764]
[1680428762713,4.45693576,1822.0,1821.8,1.0060764]
[1680428762916,4.45693576,1822.0,1821.9,0.57389785]
[1680428763201,4.45693576,1822.0,1821.9,0.71910159]
[1680428764008,5.42494341,1822.0,1821.9,0.14520374]
[1680428764799,4.74421551,1822.0,1821.9,0.14520374]
[1680428765110,5.42494206,1822.0,1821.9,0.14520374]
[1680428796020,18.59730153,1822.0,1821.9,0.14520374]
[1680428796424,18.59730153,1822.0,1821.8,0.57389785]
[1680428796618,4.74421551,1822.0,1821.9,0.14520044]
[1680428796818,18.59729578,1822.0,1821.9,0.14520044]
[1680428797826,18.59729578,1822.0,1821.8,0.57389785]
[1680428798030,4.74421551,1822.0,1821.8,0.57389785]
[1680428798326,4.74421551,1822.0,1821.9,0.14520036]
[1680428798524,5.42495935,1822.0,1821.9,0.14520036]
[1680428798721,18.59732688,1822.0,1821.9,0.14520036]
[1680428799126,18.59732688,1822.0,1821.8,0.57389785]
[1680428799327,4.74421551,1822.0,1821.8,0.57389785]
[1680428799524,4.74421551,1822.0,1821.9,0.14520018]
[1680428799823,5.4249585,1822.0,1821.9,0.14520018]
[1680428807531,18.59711344,1822.0,1821.9,0.14520018]
[1680428807934,18.59711344,1822.0,1821.8,0.57389785]
[1680428808137,4.74421551,1822.0,1821.8,0.57389785]
[1680428808326,4.74421551,1822.0,1821.9,0.14519934]
[1680428808525,5.4249482,1822.0,1821.9,0.14519934]
[1680428808934,18.59709997,1822.0,1821.9,0.14519934]
[1680428809530,17.15777553,1822.0,1821.9,0.71909719]
[1680428809731,17.15777553,1822.0,1821.9,0.57389785]
[1680428809934,17.15777553,1822.0,1821.9,0.71909702]
[1680428811031,18.59818013,1822.0,1821.9,0.71909702]
[1680428811437,17.15777553,1822.0,1821.9,0.71909702]
[1680428812536,3.98562376,1822.0,1821.9,0.71909702]
[1680428812744,1.24932905,1822.0,1821.9,1.00607111]
[1680428813035,1.24932905,1822.0,1821.9,2.29221237]
[1680428813241,0.09709107,1822.0,1821.9,2.29221237]
[1680428813630,0.96069634,1822.0,1821.9,2.00568783]
[1680428814040,0.10862773,1822.0,1821.9,1.14519917]
[1680428814238,0.47870447,1822.0,1821.9,2.80523603]
[1680428814440,0.47870447,1822.0,1821.9,8.67866816]
[1680428815634,3.2078,1822.2,1821.9,8.1656445]
[1680428815837,3.2078,1822.2,1822.1,0.57323107]
[1680428816141,3.2078,1822.2,1822.1,1.57323107]
[1680428816938,3.2078,1822.2,1822.1,7.44030992]
[1680428817838,3.2078,1822.2,1822.1,6.44030992]
[1680428818045,3.2078,1822.2,1822.0,2.43307768]
[1680428818345,3.2078,1822.2,1822.0,0.57323107]
[1680428820745,3.2078,1822.2,1822.1,0.17394484]
[1680428851467,3.2078,1822.2,1822.1,0.74717591]
[1680428855964,3.2078,1822.2,1822.1,6.52479145]
[1680428856168,4.36003798,1822.4,1822.1,6.52479145]
[1680428856362,4.36003798,1822.4,1822.2,1.57321752]
[1680428856768,4.36003798,1822.4,1822.3,0.17394424]
[1680428857472,4.64815351,1822.4,1822.3,0.17394424]
[1680428857671,5.32871773,1822.4,1822.3,0.17394424]
[1680428858678,1.15127139,1822.4,1822.3,8.09800837]
[1680428858880,1.15127139,1822.5,1822.3,7.52479085]
[1680428859079,1.15127139,1822.5,1822.4,1.57331892]
[1680428859481,1.15127139,1822.5,1822.4,0.57331892]
[1680428860983,1.15327139,1822.6,1822.4,7.35084661]
[1680428861177,0.002,1822.6,1822.5,6.491]
[1680428861390,1.30127139,1823.0,1822.6,10.491]
[1680428861587,1.30127139,1823.0,1822.9,0.57270476]
[1680428861778,1.30127139,1823.0,1822.9,1.57270476]
[1680428861978,4.64815351,1823.2,1822.9,7.9227619]
[1680428861979,0.51357139,1823.1,1822.9,7.9227619]
[1680428862180,4.64815351,1823.4,1823.0,9.55749815]
[1680428862487,4.64815351,1823.4,1823.1,7.60809058]
[1680428862687,3.2078,1823.4,1823.2,1.0]
[1680428862883,3.2078,1823.4,1823.1,6.03564581]
[1680428863088,3.2078,1823.2,1823.1,6.03564581]
[1680428863589,3.2078,1823.5,1823.1,6.03564581]
[1680428863779,3.2078,1823.2,1823.1,6.03564581]
[1680428863983,3.2078,1823.2,1823.0,5.85920478]
[1680428864182,3.2078,1823.2,1823.1,1.0]
[1680428864688,3.2078,1823.2,1823.1,6.80972411]
[1680428865684,3.2078,1823.2,1823.1,6.21012996]
[1680428869082,3.2078,1823.4,1823.1,6.21012996]
[1680428869483,3.2078,1823.4,1823.2,1.0]
[1680428870485,3.2078,1823.4,1823.3,5.80792561]
[1680428872895,3.2078,1823.4,1823.1,0.40040585]
[1680428873089,3.2078,1823.2,1823.1,0.40040585]
[1680428873288,3.2078,1823.2,1822.9,1.0]
[1680428873490,3.2078,1823.2,1823.1,5.91005707]
[1680428873685,3.2078,1823.5,1823.1,5.91005707]
[1680428873987,3.2078,1823.3,1823.2,1.0]
[1680428874386,3.2078,1823.3,1823.2,6.73662187]
[1680428875388,3.2078,1823.5,1823.2,6.73662187]
[1680428876897,3.2078,1823.3,1823.2,6.73662187]
[1680428878188,1.85779297,1823.7,1823.2,6.73662187]
[1680428878394,3.2078,1823.6,1823.2,6.73662187]
[1680428878796,3.2078,1823.4,1823.2,6.73662187]
[1680428880893,3.2078,1823.4,1823.3,0.40041495]
[1680428882196,3.2078,1823.6,1823.3,0.40041495]
[1680428882792,3.2078,1823.6,1823.4,5.83446247]
[1680428884195,3.2078,1823.6,1823.3,0.40041495]
[1680428884401,3.2078,1823.4,1823.3,0.40041495]
[1680428884590,3.2078,1823.4,1823.1,1.0]
[1680428885296,3.2078,1823.4,1823.3,1.0]
[1680428885895,3.2078,1823.4,1823.2,5.70644651]
[1680428888398,3.2078,1823.4,1823.3,1.0]
[1680428888801,3.2078,1823.4,1823.2,5.70644651]
[1680428891501,3.2078,1823.4,1823.3,1.0]
[1680428891898,3.2078,1823.4,1823.2,5.70644651]
[1680428894509,1.0,1823.3,1823.2,5.70644651]
[1680428894707,1.0,1823.3,1822.9,2.9]
[1680428894908,3.2078,1823.1,1822.9,2.9]
[1680428895601,3.2078,1823.1,1823.0,5.70913773]
[1680428895812,3.2078,1823.1,1823.0,6.1095618]
[1680428899909,0.85779297,1823.4,1823.0,6.1095618]
[1680428899910,4.06559297,1823.4,1823.0,6.1095618]
[1680428900608,0.85779297,1823.3,1823.0,6.1095618]
[1680428901913,3.2078,1823.2,1823.0,6.1095618]
[1680428903118,4.06559297,1823.2,1823.0,6.1095618]
[1680428904716,0.85779297,1823.1,1823.0,6.1095618]
[1680428906818,1.14304564,1823.1,1823.0,6.1095618]
[1680428912522,1.14304564,1823.1,1823.0,0.40042407]
[1680428919528,4.64815351,1823.2,1823.0,0.40042407]
[1680428919725,4.64815351,1823.2,1822.8,0.57244477]
[1680428919920,4.07040026,1822.9,1822.8,0.57244477]
[1680428925836,4.07040026,1822.9,1822.8,0.88137451]
[1680428928631,3.2078,1822.9,1822.8,0.88137451]
[1680428929431,4.07040026,1822.9,1822.8,0.88137451]
[1680428933344,4.07040026,1822.9,1822.8,1.74007266]
[1680428934944,0.57514609,1822.9,1822.8,1.16762789]
[1680428935146,0.57514609,1822.9,1822.8,1.45433925]
[1680428939751,0.57714609,1823.0,1822.8,0.90339545]
[1680428939952,0.57714609,1823.0,1822.9,2.14529683]
[1680428940455,0.57714609,1823.0,1822.9,8.11862965]
[1680428940855,0.55830092,1823.0,1822.9,8.42756689]
[1680428941054,0.54136228,1823.0,1822.9,8.42756689]
[1680428941255,0.52134374,1823.0,1822.9,11.63536689]
[1680428941751,0.48509418,1823.0,1822.9,11.63536689]
[1680428942154,0.46680215,1823.0,1822.9,11.63536689]
[1680428942350,0.44761773,1823.0,1822.9,11.63536689]
[1680428942855,0.43027246,1823.0,1822.9,11.63536689]
[1680428943055,0.41080366,1823.0,1822.9,11.63536689]
[1680428943252,0.39610823,1823.0,1822.9,11.63536689]
[1680428943656,0.37799919,1823.0,1822.9,11.63536689]
[1680428943849,0.35974928,1823.0,1822.9,11.63536689]
[1680428944546,0.342139,1823.0,1822.9,11.63536689]
[1680428944854,0.32438673,1823.0,1822.9,11.63536689]
[1680428945052,0.3045566,1823.0,1822.9,11.63536689]
[1680428945450,0.2903323,1823.0,1822.9,11.63536689]
[1680428945646,0.27026034,1823.0,1822.9,11.63536689]
[1680428945856,0.25375502,1823.0,1822.9,11.63536689]
[1680428946057,0.23683851,1823.0,1822.9,11.63536689]
[1680428946356,0.22265263,1823.0,1822.9,11.63536689]
[1680428946558,0.20617951,1823.0,1822.9,11.63536689]
[1680428946752,0.19009713,1823.0,1822.9,11.63536689]
[1680428947254,0.17374704,1823.0,1822.9,11.63536689]
[1680428947456,0.15752519,1823.0,1822.9,7.28227006]